[Event "*** Titled Tuesday Blitz"]
[Site "Chess.com"]
[Date "2019.11.05"]
[Round "5"]
[White "Shield12"]
[Black "cool4chess"]
[Result "1-0"]
[WhiteElo "2808"]
[BlackElo "2559"]
[TimeControl "180+2"]
[EndTime "14:06:50 PST"]
[Termination "Shield12 won by resignation"]

1. e4 {[%clk 0:02:46.2]} 1... e5 {[%clk 0:03:00.5]} 2. Nf3 {[%clk 0:02:47.4]}
2... Nc6 {[%clk 0:03:01.7]} 3. Nc3 {[%clk 0:02:49.3]} 3... Nf6 {[%clk
0:03:02.4]} 4. Bb5 {[%clk 0:02:50.4]} 4... Nd4 {[%clk 0:03:03.6]} 5. Bc4 {[%clk
0:02:51.3]} 5... Bc5 {[%clk 0:02:50.3]} 6. d3 {[%clk 0:02:51.9]} 6... d6 {[%clk
0:02:48.4]} 7. h3 {[%clk 0:02:52.4]} 7... h6 {[%clk 0:02:47.4]} 8. Na4 {[%clk
0:02:50.8]} 8... b5 {[%clk 0:02:37]} 9. Nxc5 {[%clk 0:02:47.5]} 9... bxc4 {[%clk
0:02:37.6]} 10. Na4 {[%clk 0:02:41]} 10... Nxf3+ {[%clk 0:02:22.1]} 11. Qxf3
{[%clk 0:02:41.7]} 11... cxd3 {[%clk 0:02:23.5]} 12. Qxd3 {[%clk 0:02:43.6]}
12... O-O {[%clk 0:02:11.7]} 13. Nc3 {[%clk 0:02:44.2]} 13... a5 {[%clk
0:02:11.4]} 14. Be3 {[%clk 0:02:41.2]} 14... Ba6 {[%clk 0:02:12]} 15. Qd2 {[%clk
0:02:41.9]} 15... Rb8 {[%clk 0:02:10.6]} 16. O-O-O {[%clk 0:02:42.5]} 16... Rb4
{[%clk 0:02:05.4]} 17. f3 {[%clk 0:02:42.6]} 17... Qb8 {[%clk 0:02:05.6]} 18. b3
{[%clk 0:02:41.9]} 18... a4 {[%clk 0:02:01.2]} 19. Nxa4 {[%clk 0:02:41.4]} 19...
Rxa4 {[%clk 0:01:46.6]} 20. bxa4 {[%clk 0:02:43.3]} 20... Bc4 {[%clk 0:01:48]}
21. a3 {[%clk 0:02:39.7]} 21... Qb7 {[%clk 0:01:25.4]} 22. Qb4 {[%clk
0:02:39.3]} 22... Qa6 {[%clk 0:01:25.9]} 23. a5 {[%clk 0:02:36.5]} 23... Nd7
{[%clk 0:01:25.6]} 24. Qc3 {[%clk 0:02:25.6]} 24... Rb8 {[%clk 0:01:24.6]} 25.
Kd2 {[%clk 0:02:26.5]} 25... d5 {[%clk 0:00:51.2]} 26. exd5 {[%clk 0:02:25.2]}
26... Bxd5 {[%clk 0:00:51.2]} 27. Rb1 {[%clk 0:02:22.1]} 27... Ra8 {[%clk
0:00:46.1]} 28. Qxc7 {[%clk 0:02:19.6]} 28... Be6 {[%clk 0:00:22.3]} 29. Rhd1
{[%clk 0:02:16]} 29... Rc8 {[%clk 0:00:20.3]} 30. Qa7 {[%clk 0:02:15.4]} 30...
Qc4 {[%clk 0:00:19.1]} 31. Ke1 {[%clk 0:02:10]} 31... Qxc2 {[%clk 0:00:18.2]}
32. Rbc1 {[%clk 0:02:06.6]} 32... Qxg2 {[%clk 0:00:18.3]} 33. Rxc8+ {[%clk
0:02:07.3]} 33... Kh7 {[%clk 0:00:19.5]} 34. Rxd7 {[%clk 0:02:05.5]} 34... Qh1+
{[%clk 0:00:15.1]} 35. Ke2 {[%clk 0:02:06.1]} 35... Qxh3 {[%clk 0:00:09.5]} 36.
Rcc7 {[%clk 0:02:01.5]} 36... Qg2+ {[%clk 0:00:07.9]} 37. Bf2 {[%clk 0:02:02.1]}
37... e4 {[%clk 0:00:09.1]} 38. Qe3 {[%clk 0:02:00.7]} 38... exf3+ {[%clk
0:00:09.5]} 39. Kd2 {[%clk 0:02:01.7]} 39... Qg4 {[%clk 0:00:09.5]} 40. Rxf7
{[%clk 0:01:53]} 40... Bxf7 {[%clk 0:00:08.3]} 41. Rxf7 {[%clk 0:01:54.9]} 41...
Qg6 {[%clk 0:00:04.7]} 42. Rxf3 {[%clk 0:01:49.7]} 42... Qd6+ {[%clk 0:00:03.9]}
43. Qd3+ {[%clk 0:01:51.1]} 1-0

[Event "*** Titled Tuesday Blitz"]
[Site "Chess.com"]
[Date "2019.11.05"]
[Round "5"]
[White "GasconJR"]
[Black "Taron_Shagbazyan"]
[Result "0-1"]
[WhiteElo "2466"]
[BlackElo "2705"]
[TimeControl "180+2"]
[EndTime "14:06:59 PST"]
[Termination "Taron_Shagbazyan won by resignation"]

1. e4 {[%clk 0:03:01.9]} 1... e5 {[%clk 0:02:55]} 2. Nf3 {[%clk 0:03:01.7]} 2...
Nc6 {[%clk 0:02:54.5]} 3. Bc4 {[%clk 0:03:00.5]} 3... Bc5 {[%clk 0:02:55.1]} 4.
O-O {[%clk 0:02:59]} 4... Nf6 {[%clk 0:02:56.6]} 5. d3 {[%clk 0:02:59.7]} 5...
d6 {[%clk 0:02:56.5]} 6. c3 {[%clk 0:02:57]} 6... a5 {[%clk 0:02:57.6]} 7. Nbd2
{[%clk 0:02:52.2]} 7... O-O {[%clk 0:02:58.1]} 8. h3 {[%clk 0:02:53]} 8... Be6
{[%clk 0:02:59.1]} 9. Bb5 {[%clk 0:02:51.1]} 9... Qb8 {[%clk 0:02:50.7]} 10.
Bxc6 {[%clk 0:02:26.9]} 10... bxc6 {[%clk 0:02:50.7]} 11. d4 {[%clk 0:02:28.8]}
11... exd4 {[%clk 0:02:51.4]} 12. cxd4 {[%clk 0:02:30.7]} 12... Bb6 {[%clk
0:02:51.5]} 13. Re1 {[%clk 0:02:31.4]} 13... a4 {[%clk 0:02:52.1]} 14. Nf1
{[%clk 0:02:16.8]} 14... h6 {[%clk 0:02:51.7]} 15. Ng3 {[%clk 0:02:10.2]} 15...
Re8 {[%clk 0:02:47.1]} 16. Bf4 {[%clk 0:02:06.2]} 16... Ba5 {[%clk 0:02:41.5]}
17. Re2 {[%clk 0:01:52.6]} 17... Bc4 {[%clk 0:02:41.3]} 18. Rc2 {[%clk
0:01:46.8]} 18... Qb5 {[%clk 0:02:42.9]} 19. e5 {[%clk 0:01:04.6]} 19... Nd5
{[%clk 0:02:38.7]} 20. Bd2 {[%clk 0:01:05.1]} 20... Bxd2 {[%clk 0:02:24.4]} 21.
Qxd2 {[%clk 0:01:04.8]} 21... Nb4 {[%clk 0:02:25.4]} 22. Rcc1 {[%clk 0:00:47.1]}
22... Nxa2 {[%clk 0:02:25.5]} 23. Re1 {[%clk 0:00:31.3]} 23... Nb4 {[%clk
0:02:26.6]} 24. Nf5 {[%clk 0:00:26.4]} 24... Re6 {[%clk 0:02:25.2]} 25. Qf4
{[%clk 0:00:23.6]} 25... Bd3 {[%clk 0:02:04]} 26. N3h4 {[%clk 0:00:21.5]} 26...
Nd5 {[%clk 0:01:47.7]} 27. Qg4 {[%clk 0:00:17.4]} 27... Bxf5 {[%clk 0:01:49.2]}
28. Nxf5 {[%clk 0:00:17.3]} 28... Rg6 {[%clk 0:01:50.5]} 29. Qf3 {[%clk
0:00:13.2]} 29... Qxb2 {[%clk 0:01:44.5]} 30. Rab1 {[%clk 0:00:10.3]} 30... Qd2
{[%clk 0:01:44.8]} 31. exd6 {[%clk 0:00:10.7]} 31... cxd6 {[%clk 0:01:45.6]} 32.
Ne7+ {[%clk 0:00:11.4]} 32... Nxe7 {[%clk 0:01:44.3]} 33. Rxe7 {[%clk
0:00:13.3]} 33... Rf6 {[%clk 0:01:42.8]} 34. Qg3 {[%clk 0:00:10.2]} 34... a3
{[%clk 0:01:35.6]} 35. Re3 {[%clk 0:00:04]} 35... a2 {[%clk 0:01:30.8]} 36. Ra1
{[%clk 0:00:05.2]} 36... Qxd4 {[%clk 0:01:26.3]} 37. Ree1 {[%clk 0:00:04.7]}
37... Qb2 {[%clk 0:01:24.3]} 38. Qe3 {[%clk 0:00:04.1]} 38... Re6 {[%clk
0:01:19.9]} 0-1

[Event "*** Titled Tuesday Blitz"]
[Site "Chess.com"]
[Date "2019.11.05"]
[Round "5"]
[White "yjjga"]
[Black "StoreySniper"]
[Result "0-1"]
[WhiteElo "2052"]
[BlackElo "2285"]
[TimeControl "180+2"]
[EndTime "14:07:04 PST"]
[Termination "StoreySniper won on time"]

1. d4 {[%clk 0:03:01.9]} 1... d5 {[%clk 0:03:00]} 2. c4 {[%clk 0:03:01.4]} 2...
e6 {[%clk 0:03:01]} 3. Nf3 {[%clk 0:03:01.6]} 3... Nf6 {[%clk 0:03:02.2]} 4. Nc3
{[%clk 0:03:02.7]} 4... c6 {[%clk 0:03:02.7]} 5. cxd5 {[%clk 0:03:04.2]} 5...
exd5 {[%clk 0:03:02.8]} 6. Bg5 {[%clk 0:03:05.7]} 6... Bd6 {[%clk 0:03:03.6]} 7.
Qc2 {[%clk 0:03:07]} 7... O-O {[%clk 0:03:04.2]} 8. e3 {[%clk 0:03:08.4]} 8...
Bg4 {[%clk 0:03:04.8]} 9. Ne5 {[%clk 0:03:08.6]} 9... Bh5 {[%clk 0:02:59.7]} 10.
Bd3 {[%clk 0:03:09]} 10... h6 {[%clk 0:02:59.7]} 11. Bh4 {[%clk 0:03:08]} 11...
Nbd7 {[%clk 0:02:58.3]} 12. Nxd7 {[%clk 0:03:02.4]} 12... Qxd7 {[%clk
0:02:58.7]} 13. Bxf6 {[%clk 0:02:58.7]} 13... gxf6 {[%clk 0:02:59.5]} 14. h3
{[%clk 0:02:56.8]} 14... Kg7 {[%clk 0:02:59.2]} 15. f4 {[%clk 0:02:39.5]} 15...
f5 {[%clk 0:02:54.3]} 16. Bxf5 {[%clk 0:02:39.1]} 16... Qe7 {[%clk 0:02:55.6]}
17. Kf2 {[%clk 0:02:20.6]} 17... Bg6 {[%clk 0:02:53.8]} 18. Rhe1 {[%clk
0:02:03.5]} 18... Rae8 {[%clk 0:02:48.6]} 19. Bxg6 {[%clk 0:01:39.7]} 19... fxg6
{[%clk 0:02:47.8]} 20. Kg1 {[%clk 0:01:36.5]} 20... Bc7 {[%clk 0:02:41.1]} 21.
a3 {[%clk 0:01:21]} 21... g5 {[%clk 0:02:40]} 22. Qf2 {[%clk 0:01:05.1]} 22...
gxf4 {[%clk 0:02:31.7]} 23. exf4 {[%clk 0:01:05.9]} 23... Qf6 {[%clk 0:02:30.4]}
24. g3 {[%clk 0:01:03.6]} 24... Bb6 {[%clk 0:02:29]} 25. Rxe8 {[%clk 0:00:24.5]}
25... Rxe8 {[%clk 0:02:29]} 26. Rd1 {[%clk 0:00:21.2]} 26... Re6 {[%clk
0:02:05.3]} 27. Na4 {[%clk 0:00:14.6]} 27... Re4 {[%clk 0:01:51.2]} 28. Nxb6
{[%clk 0:00:14.1]} 28... axb6 {[%clk 0:01:52]} 29. Rd2 {[%clk 0:00:13.3]} 29...
h5 {[%clk 0:01:51.3]} 30. Kg2 {[%clk 0:00:11.4]} 30... b5 {[%clk 0:01:49.7]} 31.
Qf3 {[%clk 0:00:09.2]} 31... Qf5 {[%clk 0:01:50.1]} 32. Qc3 {[%clk 0:00:05.6]}
32... Re1 {[%clk 0:01:50.2]} 33. Rf2 {[%clk 0:00:03.1]} 33... Qe4+ {[%clk
0:01:51.1]} 34. Qf3 {[%clk 0:00:04.6]} 34... Qb1 {[%clk 0:01:49.6]} 35. Qxh5
{[%clk 0:00:03.4]} 35... Rg1+ {[%clk 0:01:51.1]} 36. Kf3 {[%clk 0:00:04.9]}
36... Qd1+ {[%clk 0:01:51.5]} 37. Re2 {[%clk 0:00:05.5]} 37... Qd3+ {[%clk
0:01:39.6]} 38. Re3 {[%clk 0:00:04.4]} 38... Rxg3+ {[%clk 0:01:19.4]} 0-1

[Event "*** Titled Tuesday Blitz"]
[Site "Chess.com"]
[Date "2019.11.05"]
[Round "5"]
[White "csati17"]
[Black "AyelenChess"]
[Result "0-1"]
[WhiteElo "2511"]
[BlackElo "2059"]
[TimeControl "180+2"]
[EndTime "14:07:05 PST"]
[Termination "AyelenChess won by checkmate"]

1. c4 {[%clk 0:03:01.9]} 1... g6 {[%clk 0:02:51.6]} 2. g3 {[%clk 0:02:59.7]}
2... Bg7 {[%clk 0:02:51.8]} 3. Bg2 {[%clk 0:03:01.6]} 3... e5 {[%clk 0:02:51.9]}
4. Nc3 {[%clk 0:03:02.9]} 4... d6 {[%clk 0:02:53.1]} 5. d3 {[%clk 0:03:02.3]}
5... f5 {[%clk 0:02:54.4]} 6. e4 {[%clk 0:03:03]} 6... Nf6 {[%clk 0:02:54.8]} 7.
Nge2 {[%clk 0:03:03.9]} 7... O-O {[%clk 0:02:55.1]} 8. O-O {[%clk 0:03:05]} 8...
Nc6 {[%clk 0:02:02.5]} 9. Nd5 {[%clk 0:03:04.4]} 9... Ne7 {[%clk 0:02:01.2]} 10.
Nxe7+ {[%clk 0:02:45.1]} 10... Qxe7 {[%clk 0:02:01.3]} 11. exf5 {[%clk 0:02:47]}
11... gxf5 {[%clk 0:01:57.9]} 12. d4 {[%clk 0:02:48]} 12... e4 {[%clk 0:01:58]}
13. Bg5 {[%clk 0:02:44.9]} 13... h6 {[%clk 0:01:58.2]} 14. Bh4 {[%clk
0:02:45.9]} 14... Qf7 {[%clk 0:01:58.4]} 15. Nf4 {[%clk 0:02:40.2]} 15... Qxc4
{[%clk 0:01:55.6]} 16. d5 {[%clk 0:02:37.7]} 16... Ng4 {[%clk 0:01:51]} 17. Rc1
{[%clk 0:02:27.8]} 17... Qd4 {[%clk 0:01:48.3]} 18. Rxc7 {[%clk 0:02:26.7]}
18... Rf7 {[%clk 0:01:31.2]} 19. Qc2 {[%clk 0:02:17.8]} 19... Bd7 {[%clk
0:01:27.5]} 20. Rd1 {[%clk 0:01:20.3]} 20... Qxb2 {[%clk 0:01:18.2]} 21. Qxb2
{[%clk 0:01:18.9]} 21... Bxb2 {[%clk 0:01:19.5]} 22. Rxb7 {[%clk 0:01:19.4]}
22... Ba4 {[%clk 0:00:42.7]} 23. Rxf7 {[%clk 0:00:43.2]} 23... Bxd1 {[%clk
0:00:37.5]} 24. Rd7 {[%clk 0:00:38.4]} 24... Bd4 {[%clk 0:00:37.8]} 25. Nh3
{[%clk 0:00:38.5]} 25... Bc5 {[%clk 0:00:36.7]} 26. Bf1 {[%clk 0:00:36.2]} 26...
Rb8 {[%clk 0:00:36.3]} 27. Rd8+ {[%clk 0:00:31.7]} 27... Rxd8 {[%clk 0:00:35.8]}
28. Bxd8 {[%clk 0:00:33.6]} 28... e3 {[%clk 0:00:36.4]} 29. fxe3 {[%clk
0:00:29.2]} 29... Nxe3 {[%clk 0:00:38.3]} 30. Kf2 {[%clk 0:00:24.5]} 30... Nxd5+
{[%clk 0:00:29.8]} 31. Ke1 {[%clk 0:00:25.2]} 31... Bg4 {[%clk 0:00:28.5]} 32.
Nf2 {[%clk 0:00:20.5]} 32... Bb4# {[%clk 0:00:28.8]} 0-1

[Event "*** Titled Tuesday Blitz"]
[Site "Chess.com"]
[Date "2019.11.05"]
[Round "5"]
[White "Squirlolz"]
[Black "Alexander_Donchenko"]
[Result "0-1"]
[WhiteElo "2530"]
[BlackElo "2768"]
[TimeControl "180+2"]
[EndTime "14:07:07 PST"]
[Termination "Alexander_Donchenko won by resignation"]

1. e4 {[%clk 0:03:01.9]} 1... c6 {[%clk 0:03:01.1]} 2. Nc3 {[%clk 0:03:02.4]}
2... d5 {[%clk 0:03:02.4]} 3. Nf3 {[%clk 0:03:04.1]} 3... Bg4 {[%clk 0:03:03.2]}
4. h3 {[%clk 0:03:05.4]} 4... Bxf3 {[%clk 0:03:04.6]} 5. Qxf3 {[%clk 0:03:07.3]}
5... Nf6 {[%clk 0:03:05.4]} 6. Be2 {[%clk 0:03:05.7]} 6... Nbd7 {[%clk
0:03:03.3]} 7. d4 {[%clk 0:03:06.1]} 7... dxe4 {[%clk 0:03:03.9]} 8. Nxe4 {[%clk
0:03:08]} 8... Nxe4 {[%clk 0:03:05.4]} 9. Qxe4 {[%clk 0:03:09.9]} 9... Nf6
{[%clk 0:03:06.5]} 10. Qd3 {[%clk 0:03:11.4]} 10... e6 {[%clk 0:03:06.3]} 11.
O-O {[%clk 0:03:12.3]} 11... Bd6 {[%clk 0:03:07.8]} 12. Re1 {[%clk 0:03:08.6]}
12... Qc7 {[%clk 0:03:06.5]} 13. Bf3 {[%clk 0:03:08.5]} 13... O-O {[%clk
0:03:04.3]} 14. Bg5 {[%clk 0:02:59.9]} 14... Nd5 {[%clk 0:03:05]} 15. c3 {[%clk
0:02:59.7]} 15... Bf4 {[%clk 0:03:02.4]} 16. Bxf4 {[%clk 0:02:55]} 16... Nxf4
{[%clk 0:03:00.4]} 17. Qe3 {[%clk 0:02:49.7]} 17... Rfd8 {[%clk 0:03:00.7]} 18.
g3 {[%clk 0:02:48.7]} 18... Nd5 {[%clk 0:02:59.2]} 19. Qe4 {[%clk 0:02:33.7]}
19... Nf6 {[%clk 0:02:58.6]} 20. Qe3 {[%clk 0:02:32.3]} 20... a5 {[%clk
0:02:57.3]} 21. Kg2 {[%clk 0:02:31.2]} 21... Rac8 {[%clk 0:02:56.5]} 22. h4
{[%clk 0:02:29.8]} 22... h6 {[%clk 0:02:56.2]} 23. Rad1 {[%clk 0:02:23.5]} 23...
a4 {[%clk 0:02:55.2]} 24. Rb1 {[%clk 0:02:02.9]} 24... Ra8 {[%clk 0:02:53.2]}
25. Qe5 {[%clk 0:01:52.9]} 25... Qb6 {[%clk 0:02:48.2]} 26. g4 {[%clk 0:01:30]}
26... Ra5 {[%clk 0:02:48]} 27. Qe3 {[%clk 0:01:27]} 27... Qc7 {[%clk 0:02:48.2]}
28. b4 {[%clk 0:01:23.4]} 28... axb3 {[%clk 0:02:48.2]} 29. axb3 {[%clk
0:01:24.2]} 29... Nd5 {[%clk 0:02:42.1]} 30. Bxd5 {[%clk 0:01:25.1]} 30... Raxd5
{[%clk 0:02:38.4]} 31. Qg3 {[%clk 0:01:16.1]} 31... Qe7 {[%clk 0:02:25.7]} 32.
h5 {[%clk 0:01:16.1]} 32... c5 {[%clk 0:02:24.5]} 33. dxc5 {[%clk 0:01:16.3]}
33... Qxc5 {[%clk 0:02:25.1]} 34. Re3 {[%clk 0:01:13.1]} 34... Rd2 {[%clk
0:02:23.4]} 35. Rbe1 {[%clk 0:01:08.6]} 35... Qd5+ {[%clk 0:02:19.1]} 36. Qf3
{[%clk 0:01:07.8]} 36... Qxb3 {[%clk 0:02:18.8]} 37. Qe4 {[%clk 0:00:52.7]}
37... R8d7 {[%clk 0:01:59.1]} 38. c4 {[%clk 0:00:48.5]} 38... Qb2 {[%clk
0:01:49.9]} 39. R1e2 {[%clk 0:00:47.1]} 39... R7d4 {[%clk 0:01:44.5]} 40. Rxd2
{[%clk 0:00:25.9]} 40... Qxd2 {[%clk 0:01:46.4]} 41. Qxb7 {[%clk 0:00:09.6]}
41... Rxg4+ {[%clk 0:01:46.4]} 42. Kf3 {[%clk 0:00:04.7]} 42... Qd1+ {[%clk
0:01:29]} 43. Re2 {[%clk 0:00:05.1]} 43... Qh1+ {[%clk 0:01:28.5]} 44. Kxg4
{[%clk 0:00:03.7]} 44... Qxb7 {[%clk 0:01:30.4]} 0-1

[Event "*** Titled Tuesday Blitz"]
[Site "Chess.com"]
[Date "2019.11.05"]
[Round "5"]
[White "ChadBiryani"]
[Black "Svet99"]
[Result "0-1"]
[WhiteElo "2198"]
[BlackElo "2153"]
[TimeControl "180+2"]
[EndTime "14:07:08 PST"]
[Termination "Svet99 won by resignation"]

1. d4 {[%clk 0:03:01.2]} 1... Nf6 {[%clk 0:02:59.8]} 2. Bg5 {[%clk 0:03:02.1]}
2... e6 {[%clk 0:02:52.6]} 3. e4 {[%clk 0:03:02.8]} 3... Be7 {[%clk 0:02:53.6]}
4. Nc3 {[%clk 0:03:00.9]} 4... h6 {[%clk 0:02:54.6]} 5. Bh4 {[%clk 0:03:00.8]}
5... O-O {[%clk 0:02:53.6]} 6. Bd3 {[%clk 0:02:58.3]} 6... d5 {[%clk 0:02:52.1]}
7. e5 {[%clk 0:02:59.2]} 7... Ne8 {[%clk 0:02:50.9]} 8. Bxe7 {[%clk 0:02:58.3]}
8... Qxe7 {[%clk 0:02:51.4]} 9. f4 {[%clk 0:02:53.3]} 9... c5 {[%clk 0:02:52]}
10. Nf3 {[%clk 0:02:52.6]} 10... Nc6 {[%clk 0:02:51.3]} 11. O-O {[%clk 0:02:44]}
11... cxd4 {[%clk 0:02:39.1]} 12. Ne2 {[%clk 0:02:44.6]} 12... Qc5 {[%clk
0:02:39.2]} 13. g4 {[%clk 0:02:42.2]} 13... f6 {[%clk 0:02:37.5]} 14. Ng3 {[%clk
0:02:39.1]} 14... fxe5 {[%clk 0:02:36.7]} 15. fxe5 {[%clk 0:02:39.6]} 15... Bd7
{[%clk 0:02:34.2]} 16. Qe2 {[%clk 0:02:29.6]} 16... Nc7 {[%clk 0:02:34.7]} 17.
Nh4 {[%clk 0:02:30]} 17... Rxf1+ {[%clk 0:02:24.6]} 18. Rxf1 {[%clk 0:02:31.9]}
18... Rf8 {[%clk 0:02:16]} 19. Ng6 {[%clk 0:02:25.5]} 19... Rxf1+ {[%clk
0:02:15.5]} 20. Qxf1 {[%clk 0:02:25.9]} 20... Be8 {[%clk 0:02:16.3]} 21. Nf8
{[%clk 0:01:31.4]} 21... Qe7 {[%clk 0:01:41.1]} 22. Bh7+ {[%clk 0:01:29]} 22...
Kh8 {[%clk 0:01:41.1]} 23. Nh5 {[%clk 0:00:53.5]} 23... Nxe5 {[%clk 0:01:40.1]}
24. Qf4 {[%clk 0:00:41.9]} 24... Nxg4 {[%clk 0:01:34.3]} 25. Bg6 {[%clk
0:00:34.9]} 25... Nf6 {[%clk 0:01:22.1]} 26. Bxe8 {[%clk 0:00:15.7]} 26... Qxe8
{[%clk 0:01:01.2]} 27. Nxf6 {[%clk 0:00:14.4]} 27... Qxf8 {[%clk 0:01:00.1]} 28.
Qxc7 {[%clk 0:00:15.8]} 28... Qxf6 {[%clk 0:01:00.7]} 29. Qxb7 {[%clk
0:00:14.8]} 29... a5 {[%clk 0:00:55.5]} 30. Qa8+ {[%clk 0:00:14.3]} 30... Kh7
{[%clk 0:00:55.4]} 31. Qxa5 {[%clk 0:00:16.2]} 31... Qg5+ {[%clk 0:00:54.6]} 32.
Kf2 {[%clk 0:00:14.6]} 32... Qe3+ {[%clk 0:00:55.1]} 33. Kg2 {[%clk 0:00:13.2]}
33... Qe2+ {[%clk 0:00:55.9]} 34. Kg3 {[%clk 0:00:14.8]} 34... Qxc2 {[%clk
0:00:56.9]} 35. b4 {[%clk 0:00:15.6]} 35... d3 {[%clk 0:00:56.1]} 36. Qd8 {[%clk
0:00:07.7]} 36... d2 {[%clk 0:00:56.1]} 0-1

[Event "*** Titled Tuesday Blitz"]
[Site "Chess.com"]
[Date "2019.11.05"]
[Round "5"]
[White "mjray79"]
[Black "vova-79"]
[Result "1-0"]
[WhiteElo "2220"]
[BlackElo "2390"]
[TimeControl "180+2"]
[EndTime "14:07:11 PST"]
[Termination "mjray79 won by resignation"]

1. d4 {[%clk 0:03:01.9]} 1... d5 {[%clk 0:02:59.4]} 2. c4 {[%clk 0:03:03.1]}
2... c6 {[%clk 0:02:59.4]} 3. Nf3 {[%clk 0:03:02.7]} 3... Nf6 {[%clk 0:02:59.1]}
4. Nc3 {[%clk 0:03:03.9]} 4... e6 {[%clk 0:02:59]} 5. e3 {[%clk 0:03:02]} 5...
Nbd7 {[%clk 0:02:59]} 6. Qc2 {[%clk 0:03:00]} 6... Bd6 {[%clk 0:02:59]} 7. Bd3
{[%clk 0:03:00.1]} 7... O-O {[%clk 0:02:57.9]} 8. O-O {[%clk 0:03:00.4]} 8...
dxc4 {[%clk 0:02:58.3]} 9. Bxc4 {[%clk 0:03:00.6]} 9... b5 {[%clk 0:03:00.2]}
10. Bd3 {[%clk 0:03:01.3]} 10... a6 {[%clk 0:02:57.9]} 11. Ne4 {[%clk
0:02:58.6]} 11... Qc7 {[%clk 0:02:36.1]} 12. Nxf6+ {[%clk 0:02:30.3]} 12... Nxf6
{[%clk 0:02:33.9]} 13. e4 {[%clk 0:02:31.4]} 13... e5 {[%clk 0:02:31.5]} 14. Bg5
{[%clk 0:02:22.8]} 14... Bb7 {[%clk 0:02:17.4]} 15. Bxf6 {[%clk 0:02:19.4]}
15... gxf6 {[%clk 0:02:16.9]} 16. h3 {[%clk 0:02:12.6]} 16... exd4 {[%clk
0:02:04.8]} 17. Nxd4 {[%clk 0:02:11.9]} 17... c5 {[%clk 0:02:05.5]} 18. Nf5
{[%clk 0:02:11.1]} 18... c4 {[%clk 0:02:06.5]} 19. Qe2 {[%clk 0:02:05.2]} 19...
Kh8 {[%clk 0:02:00.1]} 20. Bc2 {[%clk 0:02:04.9]} 20... Be5 {[%clk 0:01:57.2]}
21. f4 {[%clk 0:01:59.6]} 21... Bxb2 {[%clk 0:01:55.7]} 22. Rab1 {[%clk
0:01:55]} 22... Ba3 {[%clk 0:01:54.9]} 23. Kh1 {[%clk 0:01:46.5]} 23... Rg8
{[%clk 0:01:49.2]} 24. Rbd1 {[%clk 0:01:36]} 24... Bc5 {[%clk 0:01:22.4]} 25.
Qh5 {[%clk 0:01:29]} 25... Rae8 {[%clk 0:01:15.8]} 26. Qh4 {[%clk 0:01:12.2]}
26... Rg6 {[%clk 0:01:09.5]} 27. Ng3 {[%clk 0:00:50.8]} 27... Bf8 {[%clk
0:00:41.1]} 28. Nh5 {[%clk 0:00:37.9]} 28... Bxe4 {[%clk 0:00:34.6]} 29. Bxe4
{[%clk 0:00:33.1]} 29... Rxe4 {[%clk 0:00:32.2]} 30. Nxf6 {[%clk 0:00:32.3]}
30... Rxf6 {[%clk 0:00:32.5]} 31. Qxf6+ {[%clk 0:00:30.7]} 31... Kg8 {[%clk
0:00:34.4]} 32. Qg5+ {[%clk 0:00:27.5]} 32... Kh8 {[%clk 0:00:33.1]} 33. Rd8
{[%clk 0:00:20.9]} 1-0

[Event "*** Titled Tuesday Blitz"]
[Site "Chess.com"]
[Date "2019.11.05"]
[Round "5"]
[White "r31415"]
[Black "FearlessKing64"]
[Result "0-1"]
[WhiteElo "2423"]
[BlackElo "2328"]
[TimeControl "180+2"]
[EndTime "14:07:16 PST"]
[Termination "FearlessKing64 won by resignation"]

1. e4 {[%clk 0:02:01.7]} 1... c5 {[%clk 0:03:00.7]} 2. Nf3 {[%clk 0:02:01.7]}
2... d6 {[%clk 0:03:01.9]} 3. d4 {[%clk 0:02:01.8]} 3... cxd4 {[%clk 0:03:03.8]}
4. Nxd4 {[%clk 0:02:03.1]} 4... Nf6 {[%clk 0:03:05.2]} 5. Nc3 {[%clk 0:02:04.2]}
5... a6 {[%clk 0:03:06.5]} 6. h3 {[%clk 0:02:05.4]} 6... e5 {[%clk 0:03:03]} 7.
Nde2 {[%clk 0:02:05.6]} 7... h5 {[%clk 0:03:04.6]} 8. g3 {[%clk 0:02:05.7]} 8...
Be6 {[%clk 0:03:04.4]} 9. Bg2 {[%clk 0:02:04.8]} 9... Be7 {[%clk 0:03:05.4]} 10.
Be3 {[%clk 0:02:04.1]} 10... Nbd7 {[%clk 0:03:06.1]} 11. O-O {[%clk 0:02:03.5]}
11... Rc8 {[%clk 0:03:06.1]} 12. Qd2 {[%clk 0:02:04.6]} 12... Qc7 {[%clk
0:03:05.1]} 13. b3 {[%clk 0:02:00]} 13... b5 {[%clk 0:03:03.4]} 14. f4 {[%clk
0:01:45.4]} 14... b4 {[%clk 0:02:08.3]} 15. Na4 {[%clk 0:01:44.8]} 15... Nc5
{[%clk 0:02:03]} 16. Nxc5 {[%clk 0:01:38.1]} 16... dxc5 {[%clk 0:02:02.9]} 17.
a3 {[%clk 0:01:07.9]} 17... c4 {[%clk 0:01:35.3]} 18. axb4 {[%clk 0:01:05.2]}
18... c3 {[%clk 0:01:35]} 19. Qd3 {[%clk 0:01:01.4]} 19... Bxb4 {[%clk
0:01:31.4]} 20. Rxa6 {[%clk 0:00:55.7]} 20... O-O {[%clk 0:01:23.8]} 21. Ra7
{[%clk 0:00:47.4]} 21... Qb8 {[%clk 0:01:14.9]} 22. fxe5 {[%clk 0:00:27.7]}
22... Qxe5 {[%clk 0:01:08.2]} 23. Bd4 {[%clk 0:00:28.7]} 23... Bc5 {[%clk
0:01:07.5]} 24. Bxc5 {[%clk 0:00:24.9]} 24... Qxc5+ {[%clk 0:01:07.4]} 25. Qd4
{[%clk 0:00:26.5]} 25... Rfd8 {[%clk 0:00:59.4]} 26. Qxc5 {[%clk 0:00:26.7]}
26... Rxc5 {[%clk 0:01:01.3]} 27. Nf4 {[%clk 0:00:19.3]} 27... Rd2 {[%clk
0:00:54.2]} 28. Rf2 {[%clk 0:00:20]} 28... Re5 {[%clk 0:00:42.7]} 29. Nd3 {[%clk
0:00:15.2]} 29... Rxe4 {[%clk 0:00:38.6]} 30. Bxe4 {[%clk 0:00:14.8]} 30... Nxe4
{[%clk 0:00:40.5]} 31. Ra8+ {[%clk 0:00:10.6]} 31... Kh7 {[%clk 0:00:39.7]} 32.
Rg2 {[%clk 0:00:09.2]} 32... Bd5 {[%clk 0:00:33.4]} 33. Nf4 {[%clk 0:00:10.2]}
33... Bxa8 {[%clk 0:00:32.4]} 34. Rh2 {[%clk 0:00:02.8]} 0-1